bitfinex/quotes_SOLUSD_20251030
["timestamp","ask_amount","ask_price","bid_price","bid_amount"]
[1761847317426,6.1280336,183.89,183.85,11.22]
[1761847317602,6.1280336,183.89,183.86,5.64885696]
[1761847317603,5.4380336,183.89,183.86,5.64885696]
[1761847318400,0.69,183.88,183.86,5.64885696]
[1761847318707,0.69,183.88,183.85,16.86885696]
[1761847318900,5.4377379,183.9,183.85,16.86885696]
[1761847319118,0.69,183.89,183.86,5.64885696]
[1761847319700,0.69,183.89,183.85,16.86885696]
[1761847320313,5.43832934,183.88,183.85,11.22]
[1761847320513,5.64885696,183.87,183.82,5.64885696]
[1761847320715,5.64885696,183.86,183.81,16.86885696]
[1761847320916,5.64885696,183.84,183.76,0.72]
[1761847321103,5.64885696,183.83,183.78,5.64885696]
[1761847321519,6.33885696,183.83,183.78,5.64885696]
[1761847322021,10.47882769,183.85,183.79,0.72]
[1761847322197,0.69,183.84,183.79,6.36885696]
[1761847322393,5.43980851,183.83,183.79,6.36885696]
[1761847322594,5.43980851,183.83,183.8,5.64885696]
[1761847322798,27.19164672,183.88,183.8,5.64885696]
[1761847322799,13.5961078,183.88,183.82,5.64885696]
[1761847323020,5.4380336,183.89,183.86,5.64885696]
[1761847323200,6.1280336,183.89,183.86,5.64885696]
[1761847323398,5.43777671,183.9,183.88,5.64885696]
[1761847323598,0.69,183.95,183.89,5.64885696]
[1761847323831,5.64885696,183.97,183.91,5.64885696]
[1761847323832,0.69,183.94,183.91,5.64885696]
[1761847324012,6.33885696,183.94,183.89,5.64885696]
[1761847324398,5.43714658,183.92,183.89,5.64885696]
[1761847324826,5.43714658,183.92,183.9,5.64885696]
[1761847325208,6.12714658,183.92,183.86,0.72]
[1761847325503,6.12714658,183.92,183.9,5.64885696]
[1761847325930,0.69,183.91,183.87,5.64885696]
[1761847326130,0.69,183.91,183.87,16.86885696]
[1761847326626,5.4377379,183.9,183.87,16.86885696]
[1761847327003,6.1277379,183.9,183.87,16.86885696]
[1761847327719,5.43748679,183.91,183.88,5.64885696]
[1761847327923,5.43748679,183.91,183.89,5.64885696]
[1761847328116,6.12748679,183.91,183.89,5.64885696]
[1761847328420,5.43748679,183.91,183.89,5.64885696]
[1761847328623,5.43714658,183.92,183.89,5.64885696]
[1761847329007,6.12714658,183.92,183.89,5.64885696]
[1761847330115,6.12714658,183.92,183.9,4.05813823]
[1761847330419,11.08600354,183.92,183.91,4.05813823]
[1761847330811,11.75600354,183.92,183.91,4.05813823]
[1761847331216,25.34887,183.92,183.86,5.64885696]
[1761847331519,0.67,183.91,183.86,5.64885696]
[1761847332120,5.4377379,183.9,183.87,5.64885696]
[1761847332838,6.10656861,183.94,183.89,5.64885696]
[1761847333018,6.10656861,183.94,183.91,5.64885696]
[1761847333019,5.43656861,183.94,183.91,5.64885696]
[1761847333731,6.31885696,183.96,183.92,5.64885696]
[1761847333732,5.43630647,183.95,183.92,5.64885696]
[1761847333947,5.43630647,183.95,183.93,5.64885696]
[1761847334230,5.43685097,183.93,183.88,5.64885696]
[1761847334734,6.10685097,183.93,183.88,6.34885696]
[1761847334903,0.67,183.92,183.88,5.64885696]
[1761847335107,0.67,183.92,183.87,26.24085696]
[1761847335337,0.67,183.92,183.87,26.94085696]
[1761847335543,0.67,183.92,183.88,5.64885696]
[1761847335850,5.64885696,183.91,183.87,11.22]
[1761847336132,5.4377379,183.9,183.87,11.22]
[1761847336446,5.4377379,183.9,183.87,17.51885696]
[1761847336842,5.4377379,183.9,183.87,11.22]
[1761847338610,5.4377379,183.9,183.87,16.86885696]
[1761847339134,5.4377379,183.9,183.87,11.22]
[1761847340232,4.9377379,183.9,183.87,11.22]
[1761847340437,5.43744222,183.91,183.87,11.22]
[1761847340642,6.14744222,183.91,183.87,11.22]
[1761847341331,5.64885696,183.88,183.81,5.21886369]
[1761847341529,5.64885696,183.87,183.82,16.86885696]
[1761847341725,5.64885696,183.87,183.82,11.22]
[1761847341928,0.71,183.86,183.82,11.22]
[1761847342333,19.03725863,183.85,183.8,4.56886369]
[1761847342517,24.68611559,183.85,183.79,5.64885696]
[1761847342719,25.39611559,183.85,183.79,5.64885696]
[1761847343023,25.39611559,183.85,183.79,6.29885696]
[1761847343233,24.68611559,183.85,183.79,6.29885696]
[1761847343536,0.71,183.84,183.8,5.64885696]
[1761847344041,19.03725863,183.85,183.8,5.64885696]
[1761847344244,19.74725863,183.85,183.8,6.29885696]
[1761847344628,6.14808666,183.89,183.84,5.64885696]
[1761847344831,19.03104778,183.91,183.86,5.64885696]
[1761847345024,5.43685097,183.93,183.89,5.64885696]
[1761847345538,0.71,183.92,183.89,5.64885696]
[1761847346624,5.43744222,183.91,183.88,5.64885696]
[1761847346834,5.43744222,183.91,183.85,0.65]
[1761847347044,24.67990474,183.91,183.85,16.86885696]
[1761847347243,0.71,183.9,183.85,5.64885696]
[1761847348138,9.78882769,183.89,183.84,5.64885696]
[1761847348350,15.43768465,183.89,183.83,16.86885696]
[1761847348540,5.43832934,183.88,183.83,16.86885696]
[1761847348850,25.39300966,183.88,183.82,5.64885696]
[1761847349054,0.71,183.87,183.82,5.64885696]
[1761847349545,0.71,183.87,183.8,5.64885696]
[1761847349546,15.43768465,183.86,183.8,5.64885696]
[1761847349735,5.64885696,183.85,183.79,5.64885696]
[1761847349929,6.35885696,183.85,183.79,5.64885696]
[1761847350135,0.71,183.85,183.8,5.64885696]
[1761847350649,5.43946043,183.85,183.81,0.65]
[1761847350850,5.43946043,183.85,183.82,5.64885696]
[1761847351033,5.43946043,183.85,183.83,5.64885696]
[1761847351653,0.71,183.93,183.84,5.64885696]
[1761847351857,0.71,183.97,183.89,5.64885696]
[1761847352054,0.71,183.95,183.89,0.65]
[1761847352226,5.43637342,183.95,183.93,5.64885696]
[1761847352425,19.70941283,183.99,183.93,5.64885696]
[1761847352426,2.84055587,183.99,183.94,5.64885696]
[1761847352628,5.43512273,183.99,183.97,5.64885696]
[1761847353053,5.43512273,183.99,183.96,5.64885696]
[1761847353850,19.73281771,183.99,183.96,5.64885696]
[1761847356246,6.14512273,183.99,183.96,5.64885696]
[1761847356829,5.43512273,183.99,183.96,5.64885696]
[1761847357337,5.43512273,183.99,183.96,8.56805792]
[1761847357740,5.43512273,183.99,183.94,0.65]
[1761847357956,19.02184384,184.0,183.96,8.56805792]
[1761847358554,0.71,183.99,183.96,8.56805792]
[1761847358938,5.43448725,184.01,183.96,8.56805792]
[1761847359163,5.43448725,184.01,183.98,8.56805792]
[1761847359457,46.80611176,184.03,184.0,8.56805792]
[1761847359458,11.22,184.02,184.0,8.56805792]
[1761847359656,0.68,184.08,184.01,8.56805792]
[1761847359855,0.68,184.08,184.04,8.56805792]
[1761847360366,0.68,184.08,184.01,11.89]
[1761847360661,5.43271581,184.07,184.05,8.56805792]
[1761847361424,0.68,184.06,184.03,8.56805792]
[1761847361929,9.78882769,184.05,184.0,8.56805792]
[1761847362136,0.68,184.06,184.02,8.56805792]
[1761847362357,0.68,184.06,184.03,8.56805792]
[1761847362536,0.68,184.06,183.96,20.592]
[1761847362537,18.35688561,184.05,183.98,8.56805792]
[1761847362746,19.01967176,184.02,183.98,8.56805792]
[1761847363183,5.43419193,184.02,183.99,8.56805792]
[1761847363553,6.11419193,184.02,183.98,8.56805792]
[1761847363968,0.68,184.01,183.98,8.56805792]
[1761847364145,0.68,184.01,183.95,11.22]
[1761847364345,0.68,184.01,183.97,8.56805792]
[1761847364673,0.68,184.01,183.98,8.56805792]
[1761847364674,5.4347826,184.0,183.98,8.56805792]
[1761847365245,10.46882769,183.99,183.9,0.67]
[1761847365570,8.56805792,183.98,183.92,8.56805792]
[1761847365756,9.24805792,183.98,183.92,8.56805792]
[1761847365949,30.24173912,184.0,183.91,8.56805792]
[1761847365950,19.03688561,183.97,183.91,8.56805792]
[1761847366154,10.46882769,183.97,183.92,8.56805792]
[1761847366373,6.1147826,184.0,183.96,8.56805792]
[1761847366569,5.4347826,184.0,183.99,8.56805792]
[1761847366869,0.68,184.0,183.97,8.56805792]
[1761847367064,29.48746594,184.03,183.98,4.04403677]
[1761847367372,0.68,184.02,183.97,8.56805792]
[1761847367668,0.68,184.02,183.98,4.04483826]
[1761847367843,0.68,184.02,183.98,8.56805792]
[1761847368046,5.43448725,184.01,183.98,8.56805792]
[1761847368251,5.43412952,184.03,184.0,8.56805792]
[1761847368468,0.68,184.02,183.95,6.10625985]
[1761847368770,19.69887113,184.03,183.96,4.71436482]
[1761847369071,19.69887113,184.03,184.0,8.56805792]
[1761847369472,19.01887113,184.03,184.0,8.56805792]
[1761847369680,0.68,184.02,183.98,8.56805792]
[1761847370181,5.43431094,184.02,184.0,8.56805792]
[1761847371171,5.43431094,184.02,183.98,0.67]
[1761847371375,0.68,184.01,183.99,4.04244856]
[1761847371579,19.01979077,184.02,183.99,8.56805792]
[1761847371877,19.69979077,184.02,183.99,8.56805792]
[1761847372056,0.68,184.07,184.01,8.56805792]
[1761847372250,0.68,184.07,184.03,8.56805792]
[1761847373364,5.43301097,184.06,184.03,8.56805792]
[1761847373676,19.0155384,184.06,184.03,8.56805792]
[1761847373876,0.68,184.05,184.03,8.56805792]
[1761847374681,0.68,184.05,184.02,8.56805792]
[1761847375080,0.68,184.05,184.0,0.67]
[1761847375262,0.68,184.05,184.03,8.56805792]
[1761847375577,6.11334402,184.05,184.03,8.56805792]
[1761847375752,5.43334402,184.05,184.04,8.56805792]
[1761847375956,19.01457877,184.07,184.04,8.56805792]
[1761847376151,19.69457877,184.07,184.04,8.56805792]
[1761847376458,0.68,184.06,184.04,8.56805792]
[1761847376788,0.68,184.06,184.0,0.67]
[1761847376789,5.43271581,184.07,184.05,8.56805792]
[1761847377466,5.43271581,184.07,184.06,8.56805792]
[1761847377870,0.68,184.08,184.06,8.56805792]
[1761847378076,0.1,184.12,184.07,9.23805792]
[1761847378255,5.53124049,184.12,184.11,8.56805792]
[1761847378872,5.53124049,184.12,184.08,0.67]
[1761847379077,5.53124049,184.12,184.11,8.56805792]
[1761847379285,0.1,184.12,184.11,8.56805792]
[1761847380255,5.53124049,184.12,184.11,8.56805792]
[1761847380455,0.1,184.12,184.11,8.56805792]
[1761847380963,5.53124049,184.12,184.11,8.56805792]
[1761847381284,0.1,184.12,184.11,8.56805792]
[1761847381699,5.53124049,184.12,184.11,8.56805792]
[1761847382556,9.78882769,184.11,184.05,0.67]
[1761847382750,9.78882769,184.11,184.07,8.56805792]
[1761847382955,9.78882769,184.11,184.08,8.56805792]
[1761847383373,10.46882769,184.11,184.08,8.56805792]
[1761847383568,19.69140683,184.1,184.03,21.262]
[1761847383776,19.69140683,184.1,184.07,8.56805792]
[1761847384459,9.78882769,184.07,183.99,0.67]
[1761847384655,9.78882769,184.07,184.02,8.56805792]
[1761847384859,18.35688561,184.04,183.98,8.56805792]
[1761847385077,18.35688561,184.04,183.9,4.53083201]
[1761847385078,18.35688561,184.0,183.95,8.56805792]
[1761847385286,9.78882769,184.0,183.95,8.56805792]
[1761847385491,0.68,183.99,183.95,8.56805792]
[1761847385792,5.43537341,183.98,183.95,8.56805792]
[1761847386180,11.9,184.03,183.97,8.56805792]
[1761847386505,11.9,184.03,183.99,8.56805792]
[1761847386506,11.22,184.03,183.99,8.56805792]
[1761847386866,11.9,184.03,183.99,8.56805792]
[1761847387105,5.43360139,184.04,183.99,0.67]
[1761847387397,5.43360139,184.04,183.96,11.22]
[1761847387398,5.43360139,184.04,184.01,8.56805792]
[1761847387895,5.43330616,184.05,184.01,8.56805792]
[1761847388069,19.69657157,184.05,184.01,8.56805792]
[1761847390073,19.69657157,184.05,183.97,5.43566885]
[1761847390074,5.43330616,184.05,183.97,5.43566885]
[1761847390271,5.43330616,184.05,184.02,8.56805792]
[1761847390678,5.43330616,184.05,184.03,9.24805792]
[1761847390878,5.43330616,184.05,184.03,8.56805792]
[1761847391090,5.43330616,184.05,184.03,9.24805792]
[1761847391293,5.43330616,184.05,184.03,8.56805792]
[1761847392002,5.43305018,184.06,184.03,8.56805792]
[1761847392315,5.43305018,184.06,183.99,26.02683101]
[1761847392316,0.68,184.11,184.04,0.68]
[1761847392482,15.22082944,184.1,184.01,20.592]
[1761847392686,8.56805792,184.09,184.03,8.56805792]
[1761847392879,9.78882769,184.07,184.02,8.56805792]
[1761847393078,8.56805792,184.06,184.0,8.56805792]
[1761847393396,29.57688561,184.05,183.99,8.56805792]
[1761847393587,30.25688561,184.05,183.99,8.56805792]
[1761847393783,9.78882769,183.99,183.9,4.53083201]
[1761847394010,5.43537341,183.98,183.94,8.56805792]
[1761847394504,19.70380693,183.98,183.93,8.56805792]
[1761847394706,19.70380693,183.98,183.94,8.56805792]
[1761847395390,5.43596434,183.96,183.92,8.56805792]
[1761847395588,5.43596434,183.96,183.91,8.56805792]
[1761847395589,27.59393311,183.96,183.91,8.56805792]
[1761847395893,27.59393311,183.96,183.89,11.9]
[1761847396092,19.02587519,183.96,183.91,8.56805792]
[1761847396492,19.02587519,183.96,183.9,0.68]
[1761847396493,9.23805792,183.95,183.88,0.68]
[1761847396797,0.67,183.95,183.9,8.56805792]
[1761847397111,0.67,183.95,183.91,8.56805792]
[1761847397497,5.43655539,183.94,183.91,8.56805792]
[1761847397684,5.43621451,183.96,183.92,9.24805792]
[1761847398019,5.43621451,183.96,183.89,5.43802459]
[1761847398020,5.43621451,183.96,183.93,8.56805792]
[1761847398307,5.43621451,183.96,183.9,0.68]
[1761847398499,5.43621451,183.96,183.92,8.56805792]
[1761847398696,6.10621451,183.96,183.92,8.56805792]
[1761847398902,19.02612536,183.96,183.92,8.56805792]
[1761847399097,0.67,183.95,183.92,8.56805792]
[1761847399496,0.67,183.95,183.91,8.56805792]
[1761847399780,5.43655539,183.94,183.92,8.56805792]
[1761847400409,5.43625693,183.96,183.93,8.56805792]
[1761847400737,11.22,183.99,183.95,8.56805792]
[1761847401005,6.10538695,183.98,183.93,8.56805792]
[1761847401222,6.38620572,184.07,183.93,8.56805792]
[1761847401223,0.67,184.03,183.97,8.56805792]
[1761847401385,0.67,184.03,183.96,0.68]
[1761847401710,9.78882769,183.99,183.95,8.56805792]
[1761847401888,9.78882769,183.99,183.96,8.56805792]
[1761847402089,0.67,183.98,183.96,8.56805792]
[1761847402283,0.67,183.98,183.9,21.272]
[1761847402592,0.67,183.98,183.95,8.56805792]
[1761847402897,0.67,183.98,183.94,8.56805792]
[1761847403221,0.67,183.98,183.95,8.56805792]
[1761847403915,21.67882769,184.01,183.96,8.56805792]
[1761847404094,5.4347826,184.0,183.97,8.56805792]
[1761847404302,5.4347826,184.0,183.98,8.56805792]
[1761847404498,5.43454683,184.01,183.99,8.56805792]
[1761847404814,5.43419997,184.02,184.0,8.56805792]
[1761847405186,6.10419997,184.02,184.0,8.56805792]
[1761847407316,6.10419997,184.02,184.01,8.56805792]
[1761847407816,5.43419997,184.02,184.01,8.56805792]
[1761847408406,0.67,184.05,184.01,8.56805792]
[1761847408723,26.02522977,184.06,184.04,8.56805792]
[1761847409419,0.67,184.05,184.04,8.56805792]
[1761847409627,11.22,184.07,184.04,8.56805792]
[1761847409786,26.44163135,184.07,184.06,8.56805792]
[1761847409987,27.11163135,184.07,184.06,8.56805792]
[1761847410614,15.89163135,184.07,184.06,8.56805792]
[1761847410783,27.11163135,184.07,184.06,8.56805792]
[1761847411519,27.11163135,184.07,184.05,8.56805792]
[1761847412915,9.78882769,184.02,183.96,0.68]
[1761847413214,9.78882769,184.02,183.98,8.56805792]
[1761847413414,10.45882769,184.02,183.99,8.56805792]
[1761847414806,5.43448725,184.01,183.99,8.56805792]
[1761847415720,5.43448725,184.01,184.0,8.56805792]
[1761847416104,5.43448725,184.01,183.99,8.56805792]
[1761847416311,0.67,184.0,183.98,8.56805792]
[1761847416508,19.02070539,184.01,183.98,8.56805792]
[1761847416826,6.10448725,184.01,183.98,8.56805792]
[1761847417126,0.67,184.0,183.98,8.56805792]
[1761847417491,19.02070539,184.01,183.98,8.56805792]
[1761847417708,19.69070539,184.01,183.98,8.56805792]
[1761847417911,0.67,184.0,183.98,8.56805792]
[1761847418109,19.69070539,184.01,183.98,8.56805792]
[1761847418995,19.69070539,184.01,183.99,8.56805792]
[1761847418996,16.65448725,184.01,183.99,8.56805792]
[1761847419214,9.78882769,184.02,183.92,31.812]
[1761847419215,6.12404164,184.03,184.0,8.56805792]
[1761847419416,11.22,184.04,184.02,5.63607211]
[1761847419616,9.78882769,184.07,184.03,5.63607211]
[1761847419815,9.78882769,184.07,184.06,5.63607211]
[1761847420024,11.22,184.08,184.06,5.63607211]
[1761847420201,11.22,184.08,184.07,5.63607211]
[1761847420202,21.69882769,184.08,184.07,5.63607211]
[1761847420920,5.43271581,184.07,184.05,5.63607211]
[1761847421296,0.69,184.06,184.05,5.63607211]
[1761847422006,10.47882769,184.06,184.03,5.63607211]
[1761847422206,21.69882769,184.06,184.03,5.63607211]
[1761847422393,21.69882769,184.06,184.04,5.63607211]
[1761847422394,0.69,184.05,184.04,5.63607211]
[1761847422795,0.69,184.05,184.03,5.63607211]
[1761847423110,5.43360139,184.04,184.03,5.63607211]
[1761847423425,5.43360139,184.04,184.02,5.63607211]
[1761847423629,6.12360139,184.04,184.02,5.63607211]
[1761847424402,5.43360139,184.04,184.02,5.63607211]
[1761847424908,5.43360139,184.04,184.03,5.63607211]
[1761847425111,5.43330616,184.05,184.03,5.63607211]
[1761847425309,5.43330616,184.05,184.04,5.63607211]
[1761847427724,6.12330616,184.05,184.03,5.63607211]
[1761847427923,10.47882769,184.04,183.96,82.292]
[1761847428125,9.78882769,184.02,183.95,0.7]
[1761847428319,11.22,184.01,183.94,11.22]
[1761847428623,11.91,184.01,183.97,5.63607211]
[1761847428804,0.69,184.0,183.97,5.63607211]
[1761847429032,0.69,184.0,183.93,16.65680684]
[1761847429202,0.69,184.0,183.91,82.292]
[1761847429524,9.78882769,183.98,183.89,4.53083201]
[1761847429738,9.78882769,183.98,183.93,5.63607211]
[1761847429739,26.6448998,183.98,183.93,5.63607211]
[1761847430034,0.69,183.97,183.92,5.63607211]
[1761847430533,0.69,183.97,183.93,5.63607211]
[1761847430741,0.69,183.97,183.94,5.63607211]
[1761847431101,0.69,183.97,183.93,5.63607211]
[1761847431325,0.69,183.97,183.94,5.63607211]
[1761847431533,5.43596434,183.96,183.9,6.13749962]
[1761847431706,21.00882769,183.96,183.95,5.63607211]
[1761847432110,9.78882769,183.96,183.95,5.63607211]
[1761847432530,10.47882769,183.96,183.95,5.63607211]
[1761847432717,10.47882769,183.96,183.88,20.592]
[1761847433039,10.47882769,183.96,183.93,5.63607211]
[1761847433637,5.43625985,183.95,183.93,5.63607211]
[1761847433846,6.12625985,183.95,183.93,5.63607211]
[1761847434206,9.78882769,183.98,183.94,5.63607211]
[1761847434408,15.9142011,183.98,183.97,5.63607211]
[1761847434622,27.1342011,183.98,183.97,5.63607211]
[1761847434837,27.1342011,183.98,183.96,5.63607211]
[1761847435702,26.4442011,183.98,183.96,5.63607211]
[1761847435904,0.69,183.97,183.95,5.63607211]
[1761847436620,11.91,183.97,183.95,5.63607211]
[1761847437023,5.43596434,183.96,183.94,5.63607211]
[1761847437206,6.12596434,183.96,183.94,5.63607211]
[1761847437407,5.43596434,183.96,183.94,5.63607211]
[1761847437631,0.69,183.95,183.94,5.63607211]
[1761847438314,6.12625985,183.95,183.94,5.63607211]
[1761847438708,5.43625985,183.95,183.94,5.63607211]
[1761847439109,6.12625985,183.95,183.9,0.7]
[1761847439333,6.12625985,183.95,183.94,5.63607211]
[1761847439530,6.12625985,183.95,183.93,5.63607211]
[1761847439710,0.69,183.94,183.93,5.63607211]
[1761847440320,5.43625985,183.95,183.93,5.63607211]
[1761847440529,6.12625985,183.95,183.93,5.63607211]
[1761847441138,0.69,183.94,183.92,5.63607211]
[1761847441722,11.91,183.94,183.91,5.63607211]
[1761847441943,9.78882769,183.93,183.91,5.63607211]
[1761847442111,10.47882769,183.93,183.91,5.63607211]
[1761847442451,11.22,183.94,183.92,5.63607211]
[1761847442621,26.44550778,183.94,183.87,5.43862383]
[1761847442937,26.44550778,183.94,183.91,5.63607211]
[1761847442938,10.47882769,183.93,183.91,5.63607211]
[1761847443440,10.47882769,183.93,183.87,0.7]
[1761847443617,10.47882769,183.92,183.9,5.63607211]
[1761847443818,0.69,183.91,183.9,5.63607211]
[1761847444237,5.4377379,183.9,183.89,5.63607211]
[1761847445134,26.44620235,183.92,183.89,5.63607211]
[1761847445444,27.13620235,183.92,183.9,5.63607211]
[1761847445815,27.13620235,183.92,183.89,5.63607211]
[1761847446017,27.13620235,183.92,183.86,0.7]
[1761847446346,27.13620235,183.92,183.9,5.63607211]
[1761847447726,9.78882769,183.9,183.83,0.7]
[1761847447918,9.78882769,183.9,183.84,5.63607211]
[1761847447919,9.78882769,183.88,183.84,5.63607211]
[1761847448151,11.22,183.89,183.86,5.63607211]
[1761847448316,11.22,183.89,183.88,5.63607211]
[1761847448519,16.6580336,183.89,183.88,5.63607211]
[1761847448714,11.22,183.89,183.87,5.63607211]
[1761847448935,11.22,183.89,183.88,5.63607211]
[1761847449241,11.22,183.91,183.88,5.63607211]
[1761847449422,11.22,183.91,183.9,5.63607211]
[1761847449622,11.22,183.91,183.89,5.63607211]
[1761847449835,11.22,183.91,183.9,5.63607211]
[1761847450926,16.65744222,183.91,183.9,5.63607211]
[1761847451153,17.33744222,183.91,183.87,0.71]
[1761847451323,16.65744222,183.91,183.9,5.63607211]
[1761847451843,11.22,183.91,183.9,5.63607211]
[1761847452724,1.99999999,184.04,183.9,5.63607211]
[1761847452725,0.68,183.99,183.9,11.78381001]
[1761847452936,15.22457907,183.97,183.91,0.71]
[1761847453132,15.90457907,183.97,183.91,0.71]
[1761847453950,15.90457907,183.97,183.96,2.21456807]
[1761847454533,15.90457907,183.97,183.95,2.21456807]
[1761847454840,9.78882769,183.95,183.88,11.93]
[1761847455169,21.00882769,183.95,183.94,2.21456807]
[1761847455336,10.48882769,183.94,183.93,2.21456807]
[1761847455536,10.48882769,183.94,183.93,5.64071412]
[1761847456166,11.22,183.95,183.85,107.80867157]
[1761847456355,11.22,183.95,183.94,5.64071412]
[1761847457168,15.92479203,183.96,183.94,5.64071412]
[1761847457470,16.65567357,183.97,183.95,5.64071412]
[1761847457668,17.35567357,183.97,183.95,5.64071412]
[1761847457834,0.7,183.96,183.94,5.64071412]
[1761847458252,15.22508754,183.95,183.87,15.92479203]
[1761847458459,21.00882769,183.94,183.91,5.64071412]
[1761847458758,21.70882769,183.94,183.91,5.64071412]
[1761847458962,0.7,183.93,183.91,5.64071412]
[1761847460663,6.13697232,183.93,183.91,5.64071412]
[1761847460956,5.43697232,183.93,183.91,5.64071412]
[1761847461343,5.43697232,183.93,183.92,5.64071412]
[1761847462451,5.43697232,183.93,183.91,5.64071412]
[1761847463646,21.70882769,183.92,183.85,13.59730167]
[1761847463846,5.43697232,183.93,183.9,5.64071412]
[1761847464049,11.22,183.92,183.9,5.64071412]
[1761847464265,17.35714658,183.92,183.89,5.64071412]
[1761847464640,17.35714658,183.92,183.9,5.64071412]
[1761847464853,16.65714658,183.92,183.9,5.64071412]
[1761847465940,17.35714658,183.92,183.9,5.64071412]
[1761847466143,0.7,183.91,183.84,6.36071412]
[1761847466350,0.7,183.91,183.87,5.64071412]
[1761847466566,21.00882769,183.9,183.87,5.64071412]
[1761847466760,21.00882769,183.9,183.86,5.64071412]
[1761847466962,0.7,183.89,183.86,5.64071412]
[1761847467147,21.00882769,183.88,183.84,5.64071412]
[1761847467350,21.00882769,183.88,183.82,0.72]
[1761847467351,21.70882769,183.88,183.85,5.64071412]
[1761847467660,9.78882769,183.86,183.84,5.64071412]
[1761847467836,5.43921675,183.85,183.82,0.72]
[1761847468040,9.78882769,183.86,183.84,5.64071412]
[1761847468242,9.78882769,183.86,183.85,5.64071412]
[1761847468443,16.6580336,183.89,183.85,5.64071412]
[1761847468641,17.3580336,183.89,183.88,5.64071412]
[1761847469640,16.6580336,183.89,183.88,5.64071412]
[1761847470268,11.22,183.89,183.88,5.64071412]
[1761847470468,11.2,183.9,183.88,5.64071412]
[1761847470668,11.2,183.9,183.89,5.64071412]
[1761847470973,21.292,183.94,183.89,5.64071412]
[1761847471184,20.98882769,183.93,183.89,0.72]
[1761847471483,21.68882769,183.93,183.89,0.72]
[1761847471776,27.12567866,183.93,183.87,0.72]
[1761847471977,27.12567866,183.93,183.87,6.15848528]
[1761847472472,27.12567866,183.93,183.92,5.64071412]
[1761847472784,26.42567866,183.93,183.92,5.64071412]
[1761847472958,11.2,183.93,183.92,5.64071412]
[1761847473150,5.43685097,183.93,183.92,5.64071412]
[1761847473347,9.78882769,183.94,183.92,5.64071412]
[1761847473552,15.22541618,183.94,183.93,5.64071412]
[1761847474261,2.84103001,183.96,183.91,0.72]
[1761847474447,2.84103001,183.96,183.95,5.64071412]
[1761847474448,27.12479203,183.96,183.95,5.64071412]
[1761847474956,9.78882769,183.96,183.95,5.64071412]
[1761847475167,20.592,183.98,183.95,5.64071412]
[1761847475168,26.02741818,183.98,183.95,6.36071412]
[1761847475352,26.02741818,183.98,183.97,5.64071412]
[1761847475353,27.12424587,183.98,183.97,5.64071412]
[1761847475677,26.42424587,183.98,183.97,5.64071412]
[1761847476074,27.12424587,183.98,183.97,5.64071412]
[1761847476452,27.12424587,183.98,183.92,0.72]
[1761847476652,27.12424587,183.98,183.97,5.64071412]
[1761847477268,27.12424587,183.98,183.92,6.15711968]
[1761847477471,40.01267939,183.98,183.92,0.72]
[1761847477676,40.01267939,183.98,183.95,2.21435497]
[1761847477677,10.48882769,183.97,183.95,2.21435497]
[1761847477977,5.43625985,183.95,183.94,2.21435497]
[1761847478452,9.78882769,183.94,183.92,2.21435497]
[1761847478775,10.48882769,183.93,183.92,2.21435497]
[1761847479480,10.48882769,183.93,183.91,2.21435497]
[1761847479481,9.78882769,183.92,183.91,2.21435497]
[1761847479664,21.66882769,183.92,183.87,0.72]
[1761847479865,21.66882769,183.92,183.91,2.21435497]
[1761847480064,27.10597427,183.92,183.91,2.21435497]
[1761847480560,26.42597427,183.92,183.91,2.21435497]
[1761847481458,26.42597427,183.92,183.91,3.46222371]
[1761847481677,15.22597427,183.92,183.91,3.46222371]
[1761847482286,15.90597427,183.92,183.91,3.46222371]
[1761847482856,15.90597427,183.92,183.84,4.57608715]
[1761847482857,29.6410023,183.92,183.84,4.57608715]
[1761847483065,9.78882769,183.86,183.8,4.57608715]
[1761847483267,9.78882769,183.86,183.84,3.46222371]
[1761847483468,10.46882769,183.86,183.84,3.46222371]
[1761847483678,10.46882769,183.86,183.85,3.46222371]
[1761847484062,15.9077486,183.86,183.85,3.46222371]
[1761847484464,29.50505089,183.86,183.77,0.72]
[1761847484761,29.50505089,183.86,183.76,5.43883901]
[1761847484762,9.78882769,183.84,183.81,3.46222371]
[1761847484977,9.78882769,183.82,183.81,3.46222371]
[1761847485170,9.78882769,183.82,183.8,3.46222371]
[1761847485370,20.98882769,183.81,183.8,3.46222371]
[1761847485676,26.42934989,183.81,183.75,6.16194551]
[1761847485868,26.42934989,183.81,183.8,3.46222371]